bitfinex/quotes_SOLUSD_20241218
["timestamp","ask_amount","ask_price","bid_price","bid_amount"]
[1734520934674,8.87476101,217.97,217.91,9.17476101]
[1734520934983,1.8948,218.01,217.91,9.17476101]
[1734520935499,10.76956101,218.01,217.94,8.87476101]
[1734520935868,1.8948,218.01,217.95,8.87476101]
[1734520936067,8.87476101,218.03,217.96,9.17476101]
[1734520937409,8.87476101,218.04,217.97,8.87476101]
[1734520937569,8.87476101,218.03,217.96,9.17476101]
[1734520938790,1.8701,218.07,217.97,8.87476101]
[1734520938989,8.87476101,218.05,217.98,8.87476101]
[1734520939180,23.776884,218.04,217.98,8.87476101]
[1734520939609,32.65164501,218.04,217.97,8.87476101]
[1734520940805,23.776884,218.01,217.96,0.3]
[1734520941496,23.776884,218.01,217.96,9.17476101]
[1734520941800,32.65164501,218.02,217.96,0.3]
[1734520942301,23.776884,218.02,217.96,9.17476101]
[1734520943093,23.776884,218.02,217.96,0.3]
[1734520943094,32.65164501,218.02,217.96,0.3]
[1734520943480,23.776884,218.02,217.96,9.17476101]
[1734520943678,23.776884,218.02,217.96,9.12776101]
[1734520943984,8.87476101,218.05,217.98,8.87476101]
[1734520944294,23.776884,218.05,217.99,8.87476101]
[1734520944499,32.65164501,218.05,217.98,8.87476101]
[1734520946507,32.65164501,218.05,217.98,9.02776101]
[1734520947999,1.9722,218.12,218.02,8.87476101]
[1734520948202,8.87476101,218.09,218.02,8.87476101]
[1734520948509,8.87476101,218.1,218.03,8.87476101]
[1734520949587,23.776884,218.09,218.03,9.02776101]
[1734520949779,23.776884,218.1,218.04,8.87476101]
[1734520950375,32.65164501,218.1,218.03,9.02776101]
[1734520951177,23.776884,218.1,218.04,8.87476101]
[1734520951783,32.65164501,218.1,218.03,9.02776101]
[1734520952796,8.87476101,218.09,218.03,0.153]
[1734520952987,23.776884,218.1,218.03,0.153]
[1734520952988,8.87476101,218.08,218.03,0.153]
[1734520954736,8.87476101,218.09,218.03,0.153]
[1734520955222,32.65164501,218.11,218.03,9.02776101]
[1734520955905,32.65164501,218.11,218.04,8.87476101]
[1734520956299,23.776884,218.11,218.06,8.87476101]
[1734520957216,23.776884,218.12,218.06,9.02776101]
[1734520960823,1.8283,218.17,218.07,8.87476101]
[1734520961010,8.87476101,218.12,218.06,0.153]
[1734520961322,8.87476101,218.11,218.06,0.153]
[1734520961827,8.87476101,218.12,218.06,0.153]
[1734520962924,23.776884,218.16,218.06,0.153]
[1734520963116,8.87476101,218.12,218.06,9.02776101]
[1734520963493,23.776884,218.16,218.06,9.02776101]
[1734520963699,8.87476101,218.12,218.06,9.02776101]
[1734520964114,8.87476101,218.12,218.06,0.153]
[1734520966207,23.776884,218.16,218.06,9.02776101]
[1734520966536,8.87476101,218.12,218.06,9.02776101]
[1734520968030,8.87476101,218.12,218.06,0.153]
[1734520968325,23.776884,218.16,218.06,9.02776101]
[1734520968519,8.87476101,218.12,218.06,9.02776101]
[1734520968717,8.87476101,218.12,218.06,0.153]
[1734520968917,8.87476101,218.11,218.06,0.153]
[1734520969118,8.87476101,218.07,217.99,1.9806]
[1734520969302,8.87476101,218.04,217.99,0.153]
[1734520969505,8.87476101,218.05,217.99,0.153]
[1734520969727,8.87476101,218.07,218.0,8.87476101]
[1734520970196,23.776884,218.06,218.0,8.87476101]
[1734520971002,8.87476101,218.05,218.0,0.153]
[1734520975649,23.776884,218.07,218.0,0.153]
[1734520975650,8.87476101,218.06,218.0,9.02776101]
[1734520975839,32.65164501,218.07,218.0,9.02776101]
[1734520976206,8.87476101,218.06,218.0,9.02776101]
[1734520976511,23.776884,218.05,218.0,9.02776101]
[1734520981433,32.65164501,218.03,218.0,0.153]
[1734520982411,23.776884,218.03,218.0,0.153]
[1734520983718,23.776884,218.04,218.0,0.153]
[1734520985615,23.776884,218.04,217.98,8.87476101]
[1734520987229,23.776884,218.04,217.99,8.87476101]
[1734520987431,23.776884,218.05,217.99,8.87476101]
[1734520988356,32.65164501,218.05,217.98,8.87476101]
[1734520988520,32.65164501,218.05,217.98,9.07476101]
[1734520988832,8.87476101,218.06,217.98,9.07476101]
[1734520989037,23.776884,218.05,217.98,9.07476101]
[1734520989235,32.65164501,218.05,217.98,0.2]
[1734520989420,8.87476101,218.04,217.98,0.2]
[1734520989619,23.776884,218.03,217.98,0.2]
[1734520989824,23.776884,218.03,217.98,9.07476101]
[1734520990026,23.776884,218.04,217.98,9.07476101]
[1734520990751,31.8541,218.08,217.98,9.07476101]
[1734520990752,8.87476101,218.05,217.98,9.07476101]
[1734520991059,23.776884,218.04,217.98,9.07476101]
[1734520996635,32.65164501,218.04,217.98,0.2]
[1734520997934,8.87476101,218.03,217.98,0.2]
[1734520998231,23.776884,218.02,217.98,0.2]
[1734520998458,32.65164501,218.02,217.96,0.2]
[1734520998775,23.776884,218.04,217.99,8.87476101]
[1734520998980,1.8541,218.08,218.0,8.87476101]
[1734520999278,8.87476101,218.07,218.0,8.87476101]
[1734520999765,10.72886101,218.08,218.01,8.87476101]
[1734521000076,1.8541,218.08,218.01,8.87476101]
[1734521000256,23.776884,218.07,218.01,8.87476101]
[1734521000442,10.72886101,218.08,218.01,8.87476101]
[1734521001735,8.87476101,218.12,218.05,8.87476101]
[1734521002151,10.80866101,218.13,218.06,8.87476101]
[1734521002337,1.9339,218.13,218.07,8.87476101]
[1734521003059,1.9339,218.13,218.08,8.87476101]
[1734521003437,23.776884,218.12,218.08,8.87476101]
[1734521004944,23.776884,218.12,218.05,20.0]
[1734521005263,23.776884,218.12,218.06,8.87476101]
[1734521006457,32.65164501,218.12,218.05,28.87476101]
[1734521006655,32.65164501,218.12,218.05,29.07476101]
[1734521008851,8.87476101,218.11,218.05,0.2]
[1734521009066,8.87476101,218.1,218.05,0.2]
[1734521009365,8.87476101,218.11,218.05,0.2]
[1734521009565,23.776884,218.1,218.05,9.07476101]
[1734521010176,1.9339,218.13,218.06,8.87476101]
[1734521010464,1.9339,218.13,218.07,8.87476101]
[1734521010665,10.80866101,218.13,218.06,8.87476101]
[1734521011872,8.87476101,218.12,218.05,0.2]
[1734521012174,8.87476101,218.12,218.05,9.07476101]
[1734521015547,10.80866101,218.13,218.06,9.07476101]
[1734521017883,8.87476101,218.12,218.06,0.2]
[1734521019178,10.80866101,218.13,218.06,9.07476101]
[1734521020861,1.9339,218.13,218.06,9.07476101]
[1734521021389,10.80866101,218.13,218.06,9.07476101]
[1734521021565,1.9339,218.13,218.06,9.07476101]
[1734521023288,10.80866101,218.13,218.06,0.2]
[1734521024089,8.87476101,218.12,218.06,0.2]
[1734521024795,1.9339,218.13,218.06,0.2]
[1734521025095,8.87476101,218.12,218.06,0.2]
[1734521025387,10.80866101,218.13,218.06,0.2]
[1734521026280,1.9339,218.13,218.06,0.2]
[1734521026480,10.80866101,218.13,218.06,0.2]
[1734521029390,1.9339,218.13,218.06,0.2]
[1734521029566,10.80866101,218.13,218.06,0.2]
[1734521030303,1.9339,218.13,218.06,0.2]
[1734521030481,10.80866101,218.13,218.06,0.2]
[1734521032592,1.9339,218.13,218.06,9.07476101]
[1734521034592,10.80866101,218.13,218.06,9.07476101]
[1734521035906,1.9339,218.13,218.06,9.07476101]
[1734521036090,10.80866101,218.13,218.06,9.07476101]
[1734521041175,10.80866101,218.13,218.06,0.2]
[1734521043185,1.9339,218.13,218.08,8.87476101]
[1734521043887,23.776884,218.15,218.08,8.87476101]
[1734521044095,8.87476101,218.18,218.1,8.87476101]
[1734521044871,8.87476101,218.18,218.11,8.87476101]
[1734521045071,10.72876101,218.19,218.12,8.87476101]
[1734521045588,23.776884,218.18,218.12,8.87476101]
[1734521045786,10.72876101,218.19,218.12,8.87476101]
[1734521045975,1.854,218.19,218.13,9.07476101]
[1734521046172,7.12939862,218.2,218.15,8.87476101]
[1734521046375,7.12939862,218.2,218.16,8.87476101]
[1734521046880,17.98805963,218.24,218.17,9.07476101]
[1734521047099,9.11329862,218.24,218.18,8.87476101]
[1734521047292,7.12939862,218.24,218.19,8.87476101]
[1734521047676,7.12939862,218.26,218.19,8.87476101]
[1734521047922,16.00415963,218.26,218.19,8.87476101]
[1734521048295,8.87476101,218.26,218.19,9.07476101]
[1734521048490,9.02799862,218.29,218.2,8.87476101]
[1734521048698,8.87476101,218.27,218.21,8.87476101]
[1734521048907,8.87476101,218.28,218.21,8.87476101]
[1734521049811,1.8986,218.29,218.23,8.87476101]
[1734521050022,10.77336101,218.29,218.23,8.87476101]
[1734521050223,7.12939862,218.31,218.24,9.07476101]
[1734521050394,7.12939862,218.31,218.26,8.87476101]
[1734521050587,7.12939862,218.31,218.26,9.07476101]
[1734521051210,8.87476101,218.32,218.26,9.07476101]
[1734521051409,1.9083,218.34,218.26,9.07476101]
[1734521051705,10.78306101,218.34,218.27,8.87476101]
[1734521052292,8.87476101,218.28,218.2,0.68718416]
[1734521052491,8.87476101,218.27,218.2,9.07476101]
[1734521052711,8.87476101,218.27,218.21,8.87476101]
[1734521052910,8.87476101,218.29,218.22,8.87476101]
[1734521053107,8.87476101,218.31,218.24,8.87476101]
[1734521053311,9.03769862,218.34,218.24,9.07476101]
[1734521053494,8.87476101,218.31,218.24,9.07476101]
[1734521053700,1.9083,218.34,218.26,8.87476101]
[1734521053903,1.9083,218.34,218.25,0.2]
[1734521053904,8.87476101,218.32,218.25,9.07476101]
[1734521054798,8.87476101,218.31,218.25,0.2]
[1734521055396,23.776884,218.3,218.25,0.2]
[1734521055805,8.87476101,218.31,218.25,0.2]
[1734521056724,23.776884,218.33,218.25,0.2]
[1734521057024,8.87476101,218.31,218.25,0.2]
[1734521057232,8.87476101,218.3,218.25,0.2]
[1734521057803,8.87476101,218.3,218.22,8.87476101]
[1734521058002,8.87476101,218.3,218.23,8.87476101]
[1734521060701,8.87476101,218.3,218.23,9.07476101]
[1734521061538,8.87476101,218.29,218.23,0.2]
[1734521061722,8.87476101,218.28,218.23,0.2]
[1734521062022,8.87476101,218.25,218.18,8.87476101]
[1734521062405,8.87476101,218.24,218.17,9.07476101]
[1734521063237,8.87476101,218.23,218.17,0.2]
[1734521064907,8.87476101,218.24,218.17,9.07476101]
[1734521065104,8.87476101,218.25,218.18,8.87476101]
[1734521066944,8.87476101,218.25,218.18,9.07476101]
[1734521067727,1.8163,218.26,218.18,0.2]
[1734521067923,8.87476101,218.24,218.18,0.2]
[1734521068138,32.65164501,218.25,218.18,9.07476101]
[1734521069144,8.87476101,218.24,218.18,0.2]
[1734521070645,8.87476101,218.23,218.18,0.2]
[1734521070820,8.87476101,218.21,218.15,0.2]
[1734521071151,8.87476101,218.18,218.15,0.2]
[1734521071447,8.87476101,218.17,218.09,8.87476101]
[1734521071828,23.776884,218.21,218.1,9.07476101]
[1734521072150,8.87476101,218.18,218.11,8.87476101]
[1734521073743,30.0,218.25,218.15,9.07476101]
[1734521073944,8.87476101,218.23,218.15,9.07476101]
[1734521074154,8.87476101,218.23,218.16,8.87476101]
[1734521074748,8.87476101,218.22,218.15,9.07476101]
[1734521075542,30.0,218.25,218.15,9.07476101]
[1734521075912,8.87476101,218.22,218.15,9.07476101]
[1734521078444,8.87476101,218.24,218.17,8.87476101]
[1734521078626,1.8163,218.26,218.19,8.87476101]
[1734521078951,8.87476101,218.25,218.18,8.87476101]
[1734521079727,8.87476101,218.25,218.18,9.07476101]
[1734521080957,1.8163,218.26,218.19,8.87476101]
[1734521081260,1.8163,218.26,218.2,9.07476101]
[1734521081628,10.69106101,218.26,218.2,0.2]
[1734521083339,1.8163,218.26,218.2,0.2]
[1734521083551,8.87476101,218.28,218.21,9.07476101]
[1734521083754,8.87476101,218.3,218.23,8.87476101]
[1734521083935,8.87476101,218.31,218.24,8.87476101]
[1734521084129,8.87476101,218.31,218.22,0.2]
[1734521084130,8.87476101,218.3,218.23,8.87476101]
[1734521084842,8.87476101,218.29,218.22,9.07476101]
[1734521085352,8.87476101,218.29,218.22,0.2]
[1734521085670,8.87476101,218.27,218.22,0.2]
[1734521090070,23.776884,218.31,218.22,9.07476101]
[1734521090384,8.87476101,218.29,218.22,9.07476101]
[1734521091348,8.87476101,218.3,218.23,8.87476101]
[1734521091547,1.8409,218.32,218.24,8.87476101]
[1734521091761,10.71566101,218.32,218.25,8.87476101]
[1734521092076,1.8409,218.32,218.26,9.07476101]
[1734521092580,1.8409,218.32,218.26,0.2]
[1734521092875,1.8409,218.32,218.19,12.14499348]
[1734521092876,8.87476101,218.36,218.29,8.87476101]
[1734521093467,8.87476101,218.35,218.28,9.07476101]
[1734521094270,1.8716,218.37,218.32,9.07476101]
[1734521094481,8.87476101,218.38,218.32,9.07476101]
[1734521096147,8.87476101,218.39,218.32,9.07476101]
[1734521096351,8.87476101,218.4,218.33,8.87476101]
[1734521096690,8.87476101,218.4,218.34,8.87476101]
[1734521096860,8.87476101,218.4,218.33,8.87476101]
[1734521097283,8.87476101,218.39,218.32,0.2]
[1734521100078,8.87476101,218.37,218.32,0.2]
[1734521100764,8.87476101,218.35,218.32,0.2]
[1734521102755,8.87476101,218.35,218.28,9.07476101]
[1734521103159,23.776884,218.39,218.28,9.07476101]
[1734521103361,8.87476101,218.35,218.28,9.07476101]
[1734521103578,8.87476101,218.35,218.28,0.2]
[1734521103774,8.87476101,218.35,218.29,8.87476101]
[1734521104970,8.87476101,218.36,218.29,8.87476101]
[1734521105280,23.776884,218.41,218.32,8.87476101]
[1734521105482,8.87476101,218.4,218.33,8.87476101]
[1734521105777,8.87476101,218.4,218.33,9.07476101]
[1734521106383,8.87476101,218.41,218.34,9.07476101]
[1734521107083,1.9355,218.42,218.34,9.07476101]
[1734521107381,8.87476101,218.41,218.34,9.07476101]
[1734521110487,8.87476101,218.4,218.34,9.07476101]
[1734521110786,8.87476101,218.39,218.34,0.2]
[1734521111489,8.87476101,218.4,218.34,0.2]
[1734521114199,0.5604998,218.46,218.39,9.07476101]
[1734521114403,0.5604998,218.46,218.41,8.87476101]
[1734521115359,8.87476101,218.45,218.39,0.2]
[1734521115575,8.87476101,218.44,218.39,0.2]
[1734521116219,8.87476101,218.45,218.39,0.2]
[1734521116521,8.87476101,218.44,218.39,0.2]
[1734521117499,8.87476101,218.43,218.39,0.2]
[1734521118424,8.87476101,218.42,218.36,0.2]
[1734521118615,8.87476101,218.41,218.36,0.2]
[1734521118923,8.87476101,218.4,218.36,0.2]
[1734521121525,20.5604998,218.46,218.36,9.07476101]
[1734521121694,8.87476101,218.43,218.36,9.07476101]
[1734521123228,8.87476101,218.43,218.37,8.87476101]
[1734521126830,8.87476101,218.43,218.37,9.07476101]
[1734521128429,8.87476101,218.39,218.37,0.2]
[1734521128722,8.87476101,218.38,218.37,0.2]
[1734521128922,8.87476101,218.38,218.32,9.07476101]
[1734521129118,8.87476101,218.39,218.33,8.87476101]
[1734521129501,8.87476101,218.39,218.32,9.07476101]
[1734521131317,8.87476101,218.39,218.29,0.68681544]
[1734521131318,8.87476101,218.4,218.33,9.07476101]
[1734521131638,8.87476101,218.38,218.33,0.2]
[1734521132233,1.9775,218.4,218.33,0.2]
[1734521132234,8.87476101,218.37,218.33,0.2]
[1734521135043,1.9775,218.4,218.33,0.2]
[1734521135405,8.87476101,218.39,218.33,0.2]
[1734521135827,1.9775,218.4,218.33,9.07476101]
[1734521136018,10.85226101,218.4,218.33,9.07476101]
[1734521140251,8.87476101,218.39,218.33,0.2]
[1734521141235,1.9775,218.4,218.33,9.07476101]
[1734521141430,8.87476101,218.38,218.33,0.2]
[1734521141821,8.87476101,218.39,218.33,9.07476101]
[1734521142020,8.87476101,218.38,218.33,0.2]
[1734521143843,7.12939862,218.42,218.33,0.2]
[1734521144148,8.87476101,218.38,218.33,0.2]
[1734521146332,7.12939862,218.41,218.33,0.2]
[1734521147042,7.12939862,218.42,218.38,9.07476101]
[1734521147245,7.12939862,218.42,218.38,0.2]
[1734521147651,8.87476101,218.42,218.38,0.2]
[1734521147945,8.87476101,218.43,218.38,0.2]
[1734521149560,8.87476101,218.42,218.38,0.2]
[1734521150055,8.87476101,218.41,218.38,0.2]
[1734521150239,8.87476101,218.4,218.38,0.2]
[1734521150829,23.776884,218.43,218.36,8.87476101]
[1734521151020,8.87476101,218.42,218.35,8.87476101]
[1734521151223,8.87476101,218.41,218.34,8.87476101]
[1734521151537,9.10539862,218.44,218.35,8.87476101]
[1734521151741,8.87476101,218.42,218.36,8.87476101]
[1734521151921,8.87476101,218.42,218.35,8.87476101]
[1734521152123,8.87476101,218.41,218.34,8.87476101]
[1734521152316,9.10539862,218.44,218.37,8.87476101]
[1734521152522,8.87476101,218.43,218.36,8.87476101]
[1734521152823,8.87476101,218.42,218.35,8.87476101]
[1734521155957,8.87476101,218.42,218.36,8.87476101]
[1734521156359,8.87476101,218.42,218.35,8.87476101]
[1734521157005,8.87476101,218.41,218.35,9.07476101]
[1734521157367,1.976,218.44,218.35,9.07476101]
[1734521160166,8.87476101,218.43,218.36,9.07476101]
[1734521160799,8.87476101,218.42,218.36,9.07476101]
[1734521162385,7.12939862,218.44,218.4,8.87476101]
[1734521162585,7.12939862,218.45,218.41,8.87476101]
[1734521163252,0.5604998,218.46,218.41,8.87476101]
[1734521165885,0.5604998,218.46,218.41,9.07476101]
[1734521166669,0.5604998,218.46,218.42,8.87476101]
[1734521167391,0.5604998,218.46,218.41,9.07476101]
[1734521167591,8.87476101,218.45,218.41,0.2]
[1734521167773,8.87476101,218.43,218.41,0.2]
[1734521167976,8.87476101,218.43,218.37,0.2]
[1734521170464,8.87476101,218.44,218.38,8.87476101]
[1734521172054,8.87476101,218.44,218.38,9.07476101]
[1734521172170,8.87476101,218.45,218.38,9.07476101]
[1734521172701,0.5604998,218.46,218.38,9.07476101]
[1734521172907,0.5604998,218.46,218.39,8.87476101]
[1734521173069,9.43526081,218.46,218.39,8.87476101]
[1734521173914,8.87476101,218.45,218.38,20.2]
[1734521174215,8.87476101,218.43,218.38,0.2]
[1734521174376,0.5604998,218.46,218.38,0.2]
[1734521174576,8.87476101,218.43,218.38,0.2]
[1734521176390,7.68989842,218.46,218.38,0.2]
[1734521176588,8.87476101,218.43,218.38,0.2]
[1734521179318,35.20989842,218.46,218.38,0.2]
[1734521179618,8.87476101,218.43,218.38,0.2]
[1734521190315,0.5604998,218.46,218.38,0.2]
[1734521190492,9.43526081,218.46,218.39,8.87476101]
[1734521192121,8.87476101,218.45,218.38,0.2]
[1734521192323,8.87476101,218.45,218.38,9.07476101]
[1734521194620,8.87476101,218.44,218.38,9.07476101]
[1734521195213,8.87476101,218.43,218.38,0.2]
[1734521195429,8.87476101,218.41,218.38,0.2]
[1734521195918,8.87476101,218.41,218.34,8.87476101]
[1734521196815,8.87476101,218.4,218.34,8.87476101]
[1734521197119,8.87476101,218.37,218.33,5.2]
[1734521197906,8.87476101,218.38,218.33,5.2]
[1734521202119,8.87476101,218.34,218.33,5.0]
[1734521206204,23.776884,218.36,218.33,5.0]
[1734521206513,8.87476101,218.34,218.33,5.0]
[1734521213121,32.65164501,218.34,218.33,5.0]
[1734521214228,60.25713501,218.34,218.33,5.0]
[1734521214403,60.20198725,218.34,218.33,5.0]
[1734521217629,73.98198725,218.34,218.33,5.0]
[1734521224639,65.162374,218.34,218.33,5.0]
[1734521224942,74.03713501,218.34,218.33,5.0]
[1734521225236,65.162374,218.34,218.33,5.0]
[1734521225536,74.03713501,218.34,218.33,5.0]
[1734521231241,30.0,218.3,218.17,0.2]
[1734521231456,8.87476101,218.24,218.18,8.87476101]
[1734521232712,8.87476101,218.24,218.17,0.2]
[1734521233131,8.87476101,218.24,218.17,9.07476101]
[1734521233534,8.87476101,218.23,218.17,0.2]
[1734521234222,51.256884,218.28,218.17,0.2]
[1734521234422,8.87476101,218.23,218.17,0.2]
[1734521235331,8.87476101,218.23,218.16,17.36826101]
[1734521235536,8.87476101,218.24,218.17,8.87476101]
[1734521236431,8.87476101,218.23,218.16,8.4935]
[1734521236633,8.87476101,218.22,218.16,17.36826101]
[1734521237149,8.87476101,218.22,218.16,17.16826101]
[1734521238439,8.87476101,218.22,218.16,8.2935]
[1734521238948,8.87476101,218.21,218.16,8.2935]
[1734521239248,8.87476101,218.18,218.13,0.2]
[1734521239425,8.87476101,218.18,218.12,0.2]
[1734521239751,8.87476101,218.18,218.12,9.07476101]
[1734521242234,8.87476101,218.18,218.12,8.87476101]
[1734521242634,8.87476101,218.18,218.11,8.2644]
[1734521242635,8.87476101,218.18,218.11,17.13916101]
[1734521243219,32.65164501,218.17,218.11,8.2644]
[1734521243451,65.006884,218.22,218.08,8.87476101]
[1734521243452,8.87476101,218.15,218.08,8.87476101]
[1734521243645,8.87476101,218.13,218.07,8.87476101]
[1734521243952,32.65164501,218.12,218.06,15.09566101]
[1734521244153,32.65164501,218.09,218.0,8.1887]
[1734521244355,32.65164501,218.08,218.0,8.1887]
[1734521244661,23.776884,218.08,218.02,8.87476101]
[1734521245446,23.776884,218.08,218.03,8.87476101]
[1734521245646,23.776884,218.09,218.03,8.87476101]
[1734521245847,27.48,218.13,218.0,8.1887]
[1734521245848,23.776884,218.06,218.0,8.1887]
[1734521246164,23.776884,218.06,218.0,17.06346101]
[1734521246650,23.776884,218.06,218.01,8.87476101]
[1734521246952,23.776884,218.06,218.0,17.06346101]
[1734521247333,23.776884,218.06,218.0,8.1887]
[1734521247534,32.65164501,218.06,218.0,17.06346101]
[1734521248636,23.776884,218.06,218.01,8.87476101]
[1734521249057,23.776884,218.07,218.01,8.87476101]
[1734521249356,8.87476101,218.11,218.04,8.87476101]
[1734521249952,8.87476101,218.1,218.04,8.87476101]
[1734521250659,23.776884,218.09,218.04,8.87476101]
[1734521253357,8.87476101,218.08,218.02,9.07476101]
[1734521253554,23.776884,218.07,218.02,0.2]
[1734521254861,23.776884,218.07,218.02,9.07476101]
[1734521255160,23.776884,218.07,218.02,0.2]
[1734521255352,23.776884,218.07,218.02,9.07476101]
[1734521256959,23.776884,218.07,218.02,0.2]
[1734521258067,23.776884,218.07,218.02,9.07476101]
[1734521259082,23.776884,218.07,218.02,8.87476101]
[1734521259271,23.776884,218.07,218.01,8.87476101]
[1734521261280,8.87476101,218.06,218.0,0.2]
[1734521261480,23.776884,218.05,218.0,0.2]
[1734521262171,23.776884,218.05,217.99,8.87476101]
[1734521262548,23.776884,218.04,217.99,8.87476101]
[1734521263144,23.776884,218.04,217.98,8.87476101]
[1734521267171,23.776884,218.0,217.91,11.6721]
[1734521267352,23.776884,218.0,217.94,8.87476101]
[1734521269779,23.776884,218.0,217.95,8.87476101]
[1734521270154,32.65164501,218.0,217.94,8.87476101]
[1734521273786,32.65164501,218.0,217.91,11.6721]
[1734521273970,32.65164501,218.0,217.94,8.87476101]
[1734521274885,32.65164501,218.0,217.93,8.87476101]
[1734521275102,8.87476101,217.99,217.91,0.2]
[1734521275261,8.87476101,217.97,217.91,0.2]
[1734521275461,8.87476101,217.97,217.91,9.07476101]
[1734521276666,23.776884,217.96,217.91,9.07476101]
[1734521276878,23.776884,217.96,217.91,0.2]
[1734521277117,23.776884,217.96,217.9,8.87476101]
[1734521277391,32.65164501,217.96,217.9,8.87476101]
[1734521278374,23.776884,217.96,217.9,8.87476101]
[1734521280970,32.65164501,217.96,217.89,8.87476101]
[1734521281171,8.87476101,217.95,217.89,8.87476101]
[1734521281372,8.87476101,217.93,217.85,0.2]
[1734521281574,8.87476101,217.91,217.85,8.87476101]
[1734521282575,8.87476101,217.91,217.84,0.2]
[1734521282766,8.87476101,217.9,217.84,9.07476101]
[1734521282972,51.256884,217.94,217.8,8.3166]
[1734521282973,32.65164501,217.89,217.8,8.3166]
[1734521283204,32.65164501,217.89,217.82,8.87476101]
[1734521283380,32.65164501,217.89,217.8,9.00512965]
[1734521283570,32.65164501,217.89,217.83,8.87476101]
[1734521286408,27.48,217.95,217.88,8.87476101]
[1734521286609,27.48,217.95,217.9,8.87476101]
[1734521286789,27.48,217.95,217.89,8.87476101]
[1734521286985,36.35476101,217.95,217.88,8.87476101]
[1734521287293,8.87476101,217.94,217.88,8.87476101]
[1734521288179,23.776884,217.93,217.88,8.87476101]
[1734521288676,0.12549,217.96,217.89,8.87476101]
[1734521288869,1.9637,217.98,217.9,8.87476101]
[1734521289071,8.87476101,217.97,217.9,8.87476101]
[1734521290070,23.776884,217.96,217.9,8.87476101]
[1734521290689,1.9637,217.98,217.92,8.87476101]
[1734521290892,23.776884,217.98,217.92,8.87476101]
[1734521291471,8.87476101,217.99,217.92,8.87476101]
[1734521291672,8.87476101,217.98,217.92,8.87476101]
[1734521292132,8.87476101,217.98,217.91,8.87476101]
[1734521292472,8.87476101,217.97,217.91,8.87476101]
[1734521295375,8.87476101,217.97,217.9,8.87476101]
[1734521295797,23.776884,217.96,217.89,11.6736]
[1734521295980,23.776884,217.96,217.9,8.87476101]
[1734521298292,8.87476101,217.97,217.9,8.87476101]
[1734521298490,8.87476101,217.98,217.91,8.87476101]
[1734521298698,23.776884,217.97,217.91,8.87476101]
[1734521302711,32.65164501,217.97,217.9,8.87476101]
[1734521303299,23.776884,217.97,217.92,8.87476101]
[1734521303484,32.65164501,217.98,217.92,8.87476101]
[1734521303686,32.65164501,217.98,217.91,8.87476101]
[1734521306610,8.87476101,217.97,217.9,8.87476101]
[1734521307139,8.87476101,217.97,217.9,9.07476101]
[1734521309424,8.87476101,217.97,217.9,0.2]
[1734521309612,8.87476101,217.97,217.9,9.07476101]
[1734521310119,32.65164501,217.96,217.9,0.2]
[1734521310329,8.87476101,217.94,217.9,0.2]
[1734521310617,8.87476101,217.94,217.83,6.4996]
[1734521310618,8.87476101,217.93,217.86,9.07476101]
[1734521311006,23.776884,217.95,217.86,0.2]
[1734521311210,8.87476101,217.93,217.86,0.2]
[1734521311412,8.87476101,217.94,217.87,8.87476101]
[1734521312326,8.87476101,217.94,217.86,0.2]
[1734521312327,8.87476101,217.94,217.88,8.87476101]
[1734521313524,8.87476101,217.94,217.87,8.87476101]
[1734521315825,23.776884,217.93,217.86,0.2]
[1734521316019,32.65164501,217.93,217.86,9.07476101]
[1734521316196,32.65164501,217.93,217.86,8.87476101]
[1734521319031,23.776884,217.95,217.86,8.87476101]
[1734521319241,8.87476101,217.93,217.86,8.87476101]
[1734521321647,8.87476101,217.93,217.87,8.87476101]
[1734521324343,8.87476101,217.94,217.87,8.87476101]
[1734521324547,23.776884,217.93,217.87,8.87476101]
[1734521326258,23.776884,217.95,217.88,8.87476101]
[1734521326457,8.87476101,217.94,217.87,8.87476101]
[1734521326756,23.776884,217.93,217.87,8.87476101]
[1734521327244,23.776884,217.93,217.88,8.87476101]
[1734521327853,8.87476101,217.92,217.86,8.87476101]
[1734521328062,8.87476101,217.93,217.86,8.87476101]
[1734521328550,8.87476101,217.93,217.87,8.87476101]
[1734521329698,8.87476101,217.93,217.86,8.87476101]
[1734521330320,8.87476101,217.94,217.86,8.87476101]
[1734521330524,23.776884,217.93,217.86,8.87476101]
[1734521331153,23.776884,217.93,217.83,18.86458291]